bitfinex/quotes_SOLUSD_20240809
["timestamp","ask_amount","ask_price","bid_price","bid_amount"]
[1723218166450,6.5622,152.39,152.35,16.4087]
[1723218166651,6.5625,152.38,152.34,45.0]
[1723218166858,6.5625,152.38,152.35,0.25098]
[1723218167061,1.6406659,152.41,152.35,0.25098]
[1723218167428,6.562,152.4,152.35,6.81468]
[1723218167936,45.54,152.45,152.36,0.12549]
[1723218168243,20.0,152.44,152.36,16.65858]
[1723218168433,20.0,152.44,152.38,0.12549]
[1723218168640,6.5611,152.42,152.38,0.25098]
[1723218168833,6.5611,152.42,152.39,0.12549]
[1723218169058,6.5604,152.43,152.39,0.25098]
[1723218169358,45.54,152.45,152.4,0.25098]
[1723218169531,6.5604,152.43,152.41,0.12549]
[1723218169733,6.5608,152.42,152.4,0.12549]
[1723218170040,45.54,152.45,152.15,15.6683]
[1723218170041,8.39714125,152.35,152.15,15.6683]
[1723218170248,45.54,152.3,152.23,16.4217]
[1723218170546,6.5682,152.25,152.2,16.4256]
[1723218170733,45.54,152.27,152.2,16.4256]
[1723218170940,6.5671,152.28,152.23,6.5686]
[1723218171263,6.5664,152.29,152.23,6.5686]
[1723218171657,6.5664,152.29,152.24,6.5683]
[1723218172239,45.54,152.3,152.26,0.12549]
[1723218172534,45.54,152.3,152.26,1.68972438]
[1723218172734,52.1059,152.3,152.27,0.12549]
[1723218172949,52.1059,152.3,152.28,0.12549]
[1723218173150,52.1059,152.3,152.28,0.25098]
[1723218174473,6.5664,152.29,152.28,0.12549]
[1723218174641,6.5664,152.29,152.27,0.25098]
[1723218175463,6.5668,152.28,152.27,0.25098]
[1723218175666,6.5668,152.28,152.27,0.12549]
[1723218178664,6.5672,152.27,152.23,12.7427]
[1723218178873,45.54,152.26,152.18,22.5742]
[1723218179058,52.1094,152.22,152.18,22.5742]
[1723218179370,45.54,152.22,152.18,6.1467]
[1723218179555,45.54,152.22,152.18,12.7177]
[1723218180167,45.54,152.22,152.18,6.1467]
[1723218180469,45.54,152.19,152.17,16.4281]
[1723218180677,16.4184,152.27,152.18,1.31410556]
[1723218180678,45.54,152.22,152.18,1.31410556]
[1723218180847,45.54,152.22,152.19,6.5703]
[1723218181047,45.54,152.22,152.2,1.31388907]
[1723218181274,6.5702,152.21,152.17,16.4281]
[1723218181469,45.54,152.19,152.14,22.6279]
[1723218181773,47.18259305,152.24,152.15,22.36619]
[1723218181774,37.37,152.16,152.15,22.36619]
[1723218181961,37.37,152.16,152.14,22.6279]
[1723218181962,37.37,152.16,152.14,6.1962]
[1723218183485,37.37,152.16,152.14,12.769]
[1723218183771,37.37,152.16,152.15,0.25098]
[1723218183972,37.37,152.16,152.15,0.50196]
[1723218184170,74.74,152.16,152.1,38.2647]
[1723218184378,37.37,152.12,152.11,6.5741]
[1723218184748,37.37,152.12,152.1,29.1826]
[1723218184954,37.37,152.12,152.1,29.1827]
[1723218186760,37.37,152.12,152.11,0.25098]
[1723218186965,37.37,152.12,152.11,0.50196]
[1723218190957,6.5716,152.17,152.11,1.81664595]
[1723218191175,37.37,152.16,152.13,0.12549]
[1723218191357,37.37,152.16,152.13,1.56536784]
[1723218191677,43.9428,152.14,152.13,0.25098]
[1723218191869,37.37,152.14,152.13,0.50196]
[1723218193480,37.37,152.16,152.13,0.50196]
[1723218193683,37.37,152.14,152.13,0.12549]
[1723218193860,43.9428,152.14,152.13,0.12549]
[1723218194059,37.37,152.14,152.06,6.1662]
[1723218194276,37.37,152.11,152.08,6.5754]
[1723218194876,37.37,152.09,152.06,6.1662]
[1723218195682,37.37,152.09,152.04,0.8166804]
[1723218195683,37.37,152.07,152.04,0.8166804]
[1723218195885,37.37,152.05,152.04,0.8166804]
[1723218196088,6.5742,152.11,152.06,6.5763]
[1723218196264,37.37,152.14,152.05,37.37]
[1723218196582,37.37,152.14,152.07,6.5755]
[1723218196785,37.37,152.14,152.06,1.31477923]
[1723218196986,37.37,152.08,152.04,0.8166804]
[1723218197285,37.37,152.06,152.04,0.8166804]
[1723218197485,37.37,152.08,152.04,0.8166804]
[1723218197671,37.37,152.1,152.04,7.3937804]
[1723218197988,43.9446,152.1,152.05,6.5767]
[1723218198371,6.5752,152.09,152.04,7.3937804]
[1723218199194,6.5746,152.1,152.04,7.3937804]
[1723218199495,6.5742,152.11,152.04,17.2587804]
[1723218199675,6.5742,152.11,152.05,0.12549]
[1723218199871,37.37,152.12,152.06,0.12549]
[1723218200087,37.37,152.12,152.04,17.2587804]
[1723218200785,37.37,152.12,152.04,0.8166804]
[1723218200786,37.37,152.08,152.04,0.8166804]
[1723218200982,43.9457,152.08,152.04,0.8166804]
[1723218201285,37.37,152.12,152.04,0.8166804]
[1723218201484,6.5737,152.13,152.05,22.9855]
[1723218201677,6.5737,152.13,152.05,60.3555]
[1723218202094,6.5729,152.14,152.07,16.4389]
[1723218202268,6.5729,152.14,152.09,6.5749]
[1723218202468,6.572,152.16,152.11,6.5741]
[1723218202787,6.572,152.16,152.12,0.12549]
[1723218202989,6.4441,152.2,152.12,0.12549]
[1723218202990,43.8141,152.2,152.13,0.12549]
[1723218203188,6.5708,152.19,152.14,23.0044]
[1723218203568,6.5708,152.19,152.15,6.69789]
[1723218203774,6.5708,152.19,152.16,0.12549]
[1723218204593,6.5703,152.2,152.16,0.12549]
[1723218204790,6.5698,152.21,152.17,0.12549]
[1723218205094,39.01291411,152.24,152.17,0.12549]
[1723218205294,37.37,152.22,152.16,0.25098]
[1723218205467,37.37,152.22,152.16,0.12549]
[1723218205674,1.64282537,152.21,152.15,6.42219]
[1723218205984,37.37,152.22,152.16,0.12549]
[1723218206189,6.5702,152.21,152.16,7.07386]
[1723218206491,6.5703,152.2,152.16,7.07386]
[1723218206691,6.5703,152.2,152.16,0.37647]
[1723218207194,6.5716,152.17,152.11,6.1647]
[1723218207493,6.5712,152.18,152.12,16.4334]
[1723218207682,6.5708,152.19,152.14,6.5725]
[1723218207883,6.5703,152.2,152.15,6.5723]
[1723218208071,39.98645644,152.22,152.12,16.4334]
[1723218208268,6.5716,152.17,152.12,23.007]
[1723218208473,37.37,152.18,152.12,16.4334]
[1723218208695,37.37,152.18,152.12,23.007]
[1723218208696,8.21488046,152.17,152.12,23.007]
[1723218208998,6.5716,152.17,152.13,0.25098]
[1723218209190,6.5716,152.17,152.13,0.12549]
[1723218209378,43.9414,152.18,152.12,23.0067]
[1723218209586,6.5714,152.18,152.14,6.5727]
[1723218209898,37.37,152.22,152.16,6.5716]
[1723218210271,37.37,152.22,152.18,6.571]
[1723218210487,37.37,152.22,152.17,16.4288]
[1723218210681,37.37,152.22,152.17,23.0002]
[1723218211193,37.37,152.22,152.17,23.0003]
[1723218211370,53.7939,152.22,152.13,0.25098]
[1723218211574,6.5715,152.18,152.14,0.12549]
[1723218211774,6.5708,152.19,152.14,6.94927]
[1723218212295,6.5708,152.19,152.15,0.12549]
[1723218212491,16.4239,152.22,152.16,6.5719]
[1723218212492,37.37,152.22,152.16,6.5719]
[1723218212703,44.13485204,152.24,152.18,6.5711]
[1723218212879,20.0,152.23,152.18,6.5711]
[1723218213084,20.0,152.23,152.17,6.69699]
[1723218213275,43.9389,152.24,152.19,6.5703]
[1723218213484,43.9389,152.24,152.19,0.12549]
[1723218213485,6.569,152.23,152.19,0.12549]
[1723218213684,6.5681,152.25,152.2,6.5702]
[1723218213907,6.5681,152.25,152.21,0.12549]
[1723218214108,6.5691,152.23,152.21,0.12549]
[1723218214682,6.5695,152.22,152.2,0.12549]
[1723218215012,6.5691,152.23,152.2,0.12549]
[1723218215185,8.21158554,152.23,152.2,0.12549]
[1723218215500,1.64248554,152.23,152.2,0.12549]
[1723218215709,6.5694,152.22,152.2,0.12549]
[1723218215894,8.21148554,152.23,152.2,0.12549]
[1723218216213,43.9386,152.24,152.2,0.12549]
[1723218216376,6.569,152.23,152.2,0.12549]
[1723218216579,8.21148384,152.23,152.2,0.12549]
[1723218217103,1.64248384,152.23,152.19,6.4439]
[1723218217401,37.37,152.2,152.16,6.572]
[1723218217611,39.01284157,152.2,152.16,6.572]
[1723218217795,45.58324157,152.2,152.15,29.0441]
[1723218218108,45.58324157,152.2,152.16,6.5719]
[1723218218311,37.37,152.2,152.16,6.5719]
[1723218218883,45.5831659,152.2,152.16,6.5719]
[1723218219411,6.5708,152.19,152.15,12.6134]
[1723218219580,1.6429685,152.19,152.15,6.0411]
[1723218219777,6.5713,152.18,152.15,6.0411]
[1723218220083,8.21472954,152.17,152.13,15.2494]
[1723218220312,37.37,152.16,152.13,21.8227]
[1723218220509,37.37,152.18,152.14,6.5727]
[1723218220898,43.9412,152.18,152.14,6.5727]
[1723218221213,1.64315405,152.17,152.13,21.8226]
[1723218221512,1.64315405,152.17,152.12,16.4338]
[1723218221513,37.37,152.16,152.12,16.4338]
[1723218221878,43.9421,152.16,152.12,16.4338]
[1723218222210,37.37,152.16,152.13,6.5733]
[1723218222514,37.37,152.16,152.12,23.0074]
[1723218223186,37.37,152.16,152.13,6.5732]
[1723218223611,37.37,152.16,152.14,6.5728]
[1723218223815,37.37,152.2,152.15,0.12549]
[1723218223995,37.37,152.22,152.18,6.5711]
[1723218224209,37.37,152.22,152.16,16.55449]
[1723218224210,60.3733,152.22,152.17,6.69699]
[1723218224391,60.3733,152.22,152.18,6.5711]
[1723218224591,1.64268944,152.21,152.17,6.69689]
[1723218225022,8.21258944,152.21,152.17,0.12549]
[1723218225195,39.01271542,152.2,152.17,0.37647]
[1723218225522,6.5707,152.19,152.15,6.5724]
[1723218225710,45.58301542,152.2,152.15,6.5724]
[1723218225912,37.37,152.2,152.17,6.69679]
[1723218226108,6.5697,152.22,152.18,6.5711]
[1723218226109,43.9397,152.22,152.18,6.5711]
[1723218226522,43.9397,152.22,152.17,6.69699]
[1723218226725,37.37,152.2,152.16,0.12549]
[1723218227022,43.9406,152.2,152.16,0.25098]
[1723218227319,43.9406,152.2,152.17,0.12549]
[1723218227500,43.9406,152.2,152.16,0.25098]
[1723218227704,8.21375212,152.19,152.15,16.55599]
[1723218227919,43.9406,152.2,152.16,0.25098]
[1723218228095,43.9406,152.2,152.17,0.12549]
[1723218228291,1.6428363,152.19,152.16,0.12549]
[1723218228497,43.9406,152.2,152.16,0.37647]
[1723218228731,37.36,152.24,152.19,0.12549]
[1723218228924,37.36,152.26,152.2,6.5702]
[1723218229101,6.5689,152.24,152.19,23.12239]
[1723218229318,6.5689,152.24,152.2,0.25098]
[1723218229615,6.5682,152.25,152.2,6.82098]
[1723218229820,6.5682,152.25,152.21,0.12549]
[1723218230316,43.928,152.26,152.21,6.69519]
[1723218230503,6.76151809,152.29,152.22,0.25098]
[1723218230504,37.36,152.28,152.22,0.25098]
[1723218230828,8.20954049,152.27,152.23,16.67268]
[1723218231122,43.9268,152.28,152.23,23.36677]
[1723218231294,6.5672,152.27,152.23,23.24128]
[1723218231496,6.5672,152.27,152.23,16.67268]
[1723218231814,6.76151809,152.29,152.24,0.12549]
[1723218232010,6.566,152.3,152.25,6.568]
[1723218232218,6.566,152.3,152.25,12.7844]
[1723218232518,6.566,152.3,152.26,0.12549]
[1723218232741,43.8856,152.31,152.27,0.12549]
[1723218232903,6.5656,152.31,152.27,6.94367]
[1723218233102,1.64161594,152.3,152.26,0.12549]
[1723218233409,37.32,152.31,152.26,0.37647]
[1723218233721,37.32,152.31,152.27,0.12549]
[1723218234226,37.32,152.31,152.26,0.37647]
[1723218234227,6.5667,152.29,152.26,0.12549]
[1723218234537,6.5677,152.26,152.25,6.2164]
[1723218234733,38.96180232,152.29,152.25,6.2164]
[1723218234734,6.5673,152.27,152.25,6.2164]
[1723218235110,1.64201901,152.26,152.21,22.276]
[1723218235321,6.57,152.21,152.16,6.5716]
[1723218235528,6.57,152.21,152.16,23.0012]
[1723218235529,6.5703,152.2,152.16,23.0012]
[1723218235710,37.32,152.22,152.18,6.5711]
[1723218236037,43.8886,152.24,152.19,6.5706]
[1723218236414,8.21145909,152.23,152.18,22.9984]
[1723218236617,8.21185909,152.23,152.18,22.9984]
[1723218236916,37.32,152.2,152.13,21.5748]
[1723218237115,8.21373146,152.19,152.14,6.5727]
[1723218237322,37.32,152.2,152.15,6.5724]
[1723218237531,37.32,152.2,152.13,21.5748]
[1723218237532,37.32,152.2,152.16,6.5718]
[1723218237730,43.8903,152.2,152.16,6.5718]
[1723218238433,6.5707,152.19,152.14,16.4315]
[1723218238644,8.21353739,152.19,152.14,16.4315]
[1723218238819,1.64283739,152.19,152.14,16.4315]
[1723218239014,43.8895,152.22,152.17,6.5714]
[1723218239544,6.5699,152.21,152.16,6.5719]
[1723218239733,8.21269842,152.21,152.16,6.5719]
[1723218239931,8.21269842,152.21,152.17,0.12549]
[1723218240140,6.5699,152.21,152.17,0.12549]
[1723218240321,1.64282898,152.2,152.17,0.12549]
[1723218240647,8.21312898,152.2,152.17,0.12549]
[1723218240935,37.32,152.22,152.17,0.12549]
[1723218240936,8.21263005,152.21,152.17,0.12549]
[1723218241144,43.8897,152.22,152.17,0.12549]
[1723218241308,37.32,152.24,152.17,0.50196]
[1723218241735,6.5689,152.24,152.2,6.69569]
[1723218241921,6.5689,152.24,152.21,0.12549]
[1723218242229,6.69569,152.26,152.22,0.12549]
[1723218242451,6.69569,152.26,152.22,0.37647]
[1723218242635,6.5673,152.27,152.22,0.37647]
[1723218242932,6.5665,152.29,152.24,6.69389]
[1723218243139,6.566,152.3,152.25,6.94457]
[1723218243344,16.55059,152.31,152.26,0.25098]
[1723218243544,16.55059,152.31,152.27,0.25098]
[1723218243749,6.5657,152.31,152.28,0.25098]
[1723218244043,6.5657,152.31,152.28,0.12549]
[1723218244244,6.5647,152.33,152.28,6.81768]
[1723218244443,37.32,152.36,152.29,0.25098]
[1723218244619,6.5634,152.36,152.3,0.25098]
[1723218244822,6.563,152.37,152.32,6.69059]
[1723218245239,6.563,152.37,152.33,0.12549]
[1723218245448,37.32,152.34,152.23,21.8033]
[1723218245643,37.32,152.25,152.23,21.8033]
[1723218246113,37.32,152.25,152.23,6.1845]
[1723218246319,37.32,152.27,152.23,6.1845]
[1723218246637,43.8885,152.25,152.23,6.1845]
[1723218247142,37.32,152.25,152.23,6.1845]
[1723218247341,37.32,152.29,152.23,6.1845]
[1723218247547,37.32,152.29,152.25,6.568]
[1723218247756,37.32,152.29,152.23,6.1845]
[1723218247949,6.5677,152.26,152.24,0.12549]
[1723218248151,37.32,152.27,152.24,0.12549]
[1723218248455,6.5698,152.22,152.19,15.2199]
[1723218248658,43.8898,152.22,152.19,15.2199]
[1723218248954,43.8886,152.24,152.19,21.7906]
[1723218249259,37.32,152.24,152.19,21.7905]
[1723218249432,43.8886,152.24,152.19,21.7905]
[1723218249632,43.8886,152.24,152.2,0.50196]
[1723218249833,6.5691,152.23,152.2,0.50196]
[1723218250041,37.32,152.24,152.2,0.50196]
[1723218251237,37.32,152.24,152.2,7.07216]
[1723218251436,37.32,152.28,152.22,0.12549]
[1723218251648,43.8868,152.28,152.23,6.5688]
[1723218251852,43.8868,152.28,152.24,0.50196]
[1723218252058,6.5673,152.27,152.24,0.50196]
[1723218252355,2.60943596,152.33,152.24,7.07046]
[1723218252538,6.5672,152.27,152.24,0.50196]
[1723218252938,6.5677,152.26,152.24,0.50196]
[1723218253249,43.8873,152.27,152.24,0.50196]
[1723218253559,6.5679,152.26,152.24,0.50196]
[1723218253859,37.32,152.27,152.24,0.50196]
[1723218255352,43.8876,152.27,152.24,0.50196]
[1723218255536,37.32,152.27,152.24,0.50196]
[1723218255731,6.5679,152.26,152.24,0.50196]
[1723218255936,43.8873,152.27,152.24,0.50196]
[1723218256264,37.32,152.27,152.24,0.50196]
[1723218257461,37.32,152.29,152.24,0.50196]
[1723218257638,37.32,152.29,152.25,6.568]
[1723218257840,37.32,152.29,152.26,0.50196]
[1723218258167,37.32,152.29,152.26,7.06956]
[1723218258371,37.32,152.31,152.28,0.12549]
[1723218258666,43.8855,152.31,152.28,0.50196]
[1723218259264,37.32,152.29,152.28,0.37647]
[1723218259477,37.32,152.29,152.22,6.2299]
[1723218259478,6.5678,152.26,152.22,6.2299]
[1723218259640,37.32,152.32,152.22,6.2299]
[1723218259641,37.32,152.25,152.22,6.2299]
[1723218260048,37.32,152.25,152.22,12.7993]
[1723218260248,37.32,152.27,152.22,6.2299]
[1723218260564,37.32,152.27,152.24,6.5685]
[1723218260745,37.32,152.27,152.25,0.25098]
[1723218260941,37.32,152.29,152.26,0.12549]
[1723218261147,37.32,152.29,152.26,0.25098]
[1723218261333,37.32,152.29,152.27,0.12549]
[1723218261539,37.32,152.29,152.27,0.25098]
[1723218263270,43.8866,152.29,152.27,0.25098]
[1723218263448,37.32,152.29,152.27,0.25098]
[1723218263763,6.5668,152.28,152.27,0.25098]
[1723218264064,6.5668,152.28,152.26,0.12549]
[1723218264367,6.5668,152.28,152.23,22.9905]
[1723218265360,6.5668,152.28,152.24,6.81948]
[1723218265670,43.8865,152.29,152.25,0.25098]
[1723218268146,6.5669,152.28,152.25,0.25098]
[1723218268345,37.32,152.29,152.25,0.25098]
[1723218268542,6.5686,152.24,152.2,22.9953]
[1723218268767,6.5686,152.24,152.2,22.9952]
[1723218268977,43.889,152.23,152.19,15.2199]
[1723218269172,43.889,152.23,152.19,21.7905]
[1723218269359,43.889,152.23,152.18,6.0907]
[1723218269554,37.32,152.21,152.18,12.6615]
[1723218270151,37.32,152.23,152.2,16.4257]
[1723218270356,37.32,152.25,152.24,6.5684]
[1723218270763,37.32,152.27,152.24,6.5684]
[1723218271166,37.32,152.27,152.25,0.12549]
[1723218272579,37.32,152.29,152.25,6.69339]
[1723218272967,37.32,152.31,152.27,6.5672]
[1723218273276,43.8856,152.31,152.26,0.25098]
[1723218273481,43.8856,152.31,152.27,0.12549]
[1723218274450,43.8856,152.31,152.27,8.13150789]
[1723218274651,37.32,152.31,152.27,8.13150789]
[1723218274865,37.32,152.31,152.28,0.25098]
[1723218275183,37.32,152.31,152.29,0.25098]
[1723218275651,43.8855,152.31,152.29,0.25098]
[1723218276988,6.5659,152.3,152.29,0.12549]
[1723218277165,6.5659,152.3,152.27,0.12549]
[1723218277366,37.32,152.29,152.27,0.50196]
[1723218278087,43.8856,152.31,152.27,0.50196]
[1723218278282,43.8848,152.33,152.28,6.5665]
[1723218278591,43.8848,152.33,152.29,1.81511307]
[1723218278893,37.32,152.33,152.29,8.38141307]
[1723218279192,43.8848,152.33,152.29,1.81511307]
[1723218279493,6.5651,152.32,152.29,0.50196]
[1723218280898,1.64141961,152.32,152.22,6.51]
[1723218281082,6.5681,152.25,152.22,6.51]
[1723218281265,37.32,152.24,152.22,6.51]
[1723218282597,37.32,152.24,152.2,16.0538]
[1723218282770,37.32,152.22,152.2,16.0538]
[1723218283172,37.32,152.22,152.19,6.5706]
[1723218283374,37.32,152.22,152.18,22.9162]
[1723218283679,37.32,152.24,152.18,22.9162]
[1723218284468,37.32,152.24,152.19,45.50196]
[1723218285098,37.32,152.26,152.23,6.569]
[1723218285273,37.32,152.26,152.22,6.82038]
[1723218285474,6.5682,152.25,152.22,0.25098]
[1723218285667,6.5682,152.25,152.23,0.12549]
[1723218285874,37.32,152.24,152.23,0.12549]
[1723218286191,37.32,152.24,152.22,0.12549]
[1723218286372,37.32,152.24,152.22,0.25098]
[1723218286771,37.32,152.24,152.22,0.12549]
[1723218286970,37.32,152.24,152.21,0.25098]
[1723218287597,43.8887,152.24,152.2,6.5702]
[1723218287767,37.32,152.26,152.23,6.5688]
[1723218287973,37.32,152.26,152.23,6.5689]
[1723218288172,37.32,152.28,152.24,6.5682]
[1723218288473,37.32,152.28,152.25,6.5678]
[1723218289177,37.32,152.28,152.24,6.94487]
[1723218289369,37.32,152.28,152.24,0.37647]
[1723218290195,43.8868,152.28,152.24,0.37647]
[1723218290372,43.8868,152.28,152.24,6.94497]
[1723218290698,37.32,152.28,152.24,6.94497]
[1723218291079,37.32,152.28,152.25,6.568]
[1723218291591,43.8868,152.28,152.24,0.25098]
[1723218292083,37.32,152.26,152.24,0.12549]
[1723218292283,6.5681,152.25,152.21,0.12549]
[1723218292487,37.32,152.24,152.21,0.25098]
[1723218292802,37.32,152.24,152.22,6.5693]
[1723218292988,37.32,152.24,152.21,6.82068]
[1723218293183,37.32,152.24,152.22,6.5692]
[1723218293379,37.32,152.24,152.21,0.25098]
[1723218293697,37.32,152.24,152.22,0.12549]
[1723218294600,37.32,152.26,152.23,16.4222]
[1723218295301,37.32,152.28,152.24,6.81948]
[1723218295482,43.8868,152.28,152.24,6.81948]
[1723218295979,43.8868,152.28,152.24,0.25098]
[1723218297389,6.5673,152.27,152.24,0.25098]
[1723218298098,37.32,152.28,152.24,0.12549]
[1723218298596,43.8868,152.28,152.24,0.25098]
[1723218298989,37.32,152.28,152.25,0.12549]
[1723218299189,6.5664,152.29,152.25,6.94447]
[1723218299494,6.5664,152.29,152.26,0.12549]
[1723218300500,71.94419,152.37,152.27,23.04009]
[1723218300501,43.8846,152.34,152.27,23.04009]
[1723218300798,6.566,152.3,152.28,0.37647]
[1723218300985,6.5664,152.29,152.28,0.37647]
[1723218301306,6.5668,152.28,152.27,6.4975]
[1723218301778,6.5665,152.29,152.27,6.4975]
[1723218302288,43.886,152.3,152.27,6.4975]
[1723218302609,37.32,152.3,152.27,13.0647]
[1723218302794,37.32,152.3,152.28,0.12549]
[1723218302987,37.32,152.3,152.28,0.25098]
[1723218303390,43.8852,152.32,152.28,0.25098]
[1723218303596,37.32,152.32,152.28,6.81778]
[1723218303905,6.5647,152.33,152.3,0.12549]
[1723218304086,6.5647,152.33,152.3,0.25098]
[1723218304480,6.5653,152.32,152.3,0.12549]
[1723218304704,6.5653,152.32,152.29,0.25098]
[1723218305214,37.32,152.34,152.29,0.25098]
[1723218305215,6.5648,152.33,152.29,0.25098]
[1723218305794,37.32,152.32,152.3,0.12549]
[1723218305984,1.64149884,152.31,152.27,6.4975]
[1723218306185,6.5665,152.29,152.28,0.12549]
[1723218306794,43.886,152.3,152.28,0.12549]
[1723218307114,16.4123,152.33,152.28,0.25098]
[1723218307115,37.32,152.32,152.28,0.25098]
[1723218307329,37.32,152.35,152.29,0.12549]
[1723218307527,9.35885876,152.37,152.29,0.12549]
[1723218307528,43.8855,152.31,152.29,0.12549]
[1723218307812,37.32,152.31,152.27,6.4975]
[1723218307985,6.5668,152.28,152.27,6.4975]
[1723218308195,37.32,152.31,152.27,6.4975]
[1723218308403,43.8856,152.31,152.27,6.4975]
[1723218308917,6.5661,152.3,152.27,6.4975]
[1723218309088,6.5668,152.28,152.27,6.4975]
[1723218309413,37.32,152.29,152.27,6.4975]
[1723218309917,29.02,152.29,152.27,6.4975]
[1723218310287,30.66166447,152.29,152.27,6.4975]
[1723218310488,6.5668,152.28,152.27,6.4975]
[1723218310808,6.5668,152.28,152.26,0.12549]
[1723218310809,29.02,152.29,152.25,15.9446]
[1723218310998,29.02,152.29,152.27,6.5672]
[1723218311194,29.02,152.33,152.27,16.4176]
[1723218311393,9.3622484,152.37,152.29,16.4155]
[1723218311394,35.5839,152.35,152.29,16.4155]
[1723218311595,35.5839,152.35,152.3,6.5659]
[1723218311804,37.29,152.35,152.29,16.4155]
[1723218312018,37.29,152.35,152.3,0.50196]
[1723218312222,6.5647,152.33,152.3,0.50196]
[1723218312903,6.5651,152.32,152.3,0.50196]
[1723218313298,6.5651,152.32,152.3,0.12549]
[1723218313299,43.8555,152.31,152.3,0.12549]
[1723218313497,43.8555,152.31,152.26,22.9862]
[1723218313697,43.8555,152.31,152.28,0.12549]
[1723218313913,37.29,152.33,152.28,6.69209]
[1723218314127,43.8547,152.33,152.29,0.37647]
[1723218314293,43.8547,152.33,152.3,0.12549]
[1723218314495,6.564,152.35,152.31,6.0616]
[1723218314693,43.8543,152.34,152.32,0.50196]
[1723218315195,6.5646,152.33,152.32,0.50196]
[1723218315403,6.5646,152.33,152.32,0.12549]
[1723218315604,37.29,152.34,152.27,13.0408]
[1723218315605,37.29,152.34,152.28,0.12549]
[1723218315806,37.29,152.32,152.28,45.50196]
[1723218316002,43.8552,152.32,152.28,0.50196]
[1723218316221,37.29,152.32,152.28,7.06866]
[1723218316497,37.29,152.32,152.28,52.06866]
[1723218316913,43.8552,152.32,152.28,52.06866]
[1723218317528,37.29,152.32,152.28,52.06866]
[1723218317713,6.5655,152.31,152.28,45.50196]
[1723218318098,37.29,152.32,152.28,0.25098]
[1723218318300,6.5668,152.28,152.27,6.474]
[1723218318499,6.5668,152.28,152.25,15.9446]
[1723218318500,37.29,152.28,152.25,15.9446]
[1723218318913,37.29,152.3,152.27,6.5668]
[1723218319305,7.60309691,152.39,152.25,15.9446]
[1723218319306,17.0505857,152.4,152.28,1.31317821]
[1723218319611,37.29,152.33,152.26,0.12549]
[1723218319809,43.8548,152.33,152.29,0.12549]
[1723218320132,43.8548,152.33,152.29,45.50196]
[1723218320297,37.29,152.33,152.29,52.06816]
[1723218320503,43.8547,152.33,152.29,52.06816]
[1723218320827,37.29,152.31,152.29,45.50196]
[1723218321827,37.29,152.31,152.27,22.9848]
[1723218322127,37.29,152.31,152.25,15.9446]
[1723218322128,6.5677,152.26,152.25,15.9446]
[1723218322305,6.5685,152.24,152.23,6.237]
[1723218322502,37.29,152.24,152.21,16.0825]
[1723218322721,43.8586,152.24,152.21,16.0825]
[1723218323034,37.29,152.24,152.21,16.0825]
[1723218323534,37.29,152.28,152.25,6.568]
[1723218323825,37.29,152.28,152.24,22.9891]
[1723218324224,37.29,152.28,152.25,46.31341926]
[1723218324431,6.5664,152.29,152.25,52.88141926]